bitfinex/quotes_ETHUSD_20220202
["timestamp","ask_amount","ask_price","bid_price","bid_amount"]
[1643817181386,0.1432,2671.3,2670.6,1.63823078]
[1643817181589,1.87282,2671.9,2670.6,1.63823078]
[1643817181590,0.187,2671.8,2670.6,1.63823078]
[1643817181784,0.621,2671.9,2670.7,0.187]
[1643817182004,1.28128993,2671.8,2670.6,0.70192078]
[1643817182203,1.88911889,2671.7,2670.4,0.187]
[1643817182406,1.26911889,2671.6,2670.2,0.187]
[1643817182606,0.6212,2671.5,2670.2,0.187]
[1643817182909,5.55,2671.2,2669.9,1.43287962]
[1643817183112,5.55,2671.2,2669.5,0.1872]
[1643817183113,0.01229633,2670.6,2669.5,0.1872]
[1643817183307,0.6212,2670.5,2669.3,1.655024]
[1643817183506,0.2048977,2670.3,2670.0,0.00579545]
[1643817183706,0.39129792,2670.5,2670.0,0.00579545]
[1643817184106,0.99999999,2670.7,2670.0,0.00579545]
[1643817184308,0.0127306,2670.3,2670.0,0.00579545]
[1643817184506,0.0127306,2670.3,2668.6,0.08609393]
[1643817184507,35.62950336,2670.2,2668.6,0.27329393]
[1643817184706,0.22041861,2668.9,2668.7,0.27810866]
[1643817184908,0.22041861,2668.9,2668.6,0.08609393]
[1643817185107,0.434,2669.3,2668.7,0.79263736]
[1643817185309,0.434,2669.3,2668.6,0.08609393]
[1643817185787,0.434,2669.3,2668.7,0.93687]
[1643817186173,0.434,2669.3,2668.6,0.08609393]
[1643817186174,0.21334182,2668.9,2668.6,0.08609393]
[1643817186372,0.434,2668.8,2668.6,0.08609393]
[1643817187376,1.55854,2668.8,2668.6,0.08609393]
[1643817187772,3.0,2668.7,2668.6,0.08609393]
[1643817187974,3.434,2668.7,2668.6,0.08609393]
[1643817188173,5.70637536,2668.7,2668.6,0.08609393]
[1643817188381,3.434,2668.7,2668.6,0.09090797]
[1643817188773,7.13184172,2668.7,2668.6,0.09090797]
[1643817188973,39.72992725,2668.7,2668.6,0.09090797]
[1643817189374,39.72992725,2668.7,2668.6,0.08609393]
[1643817189607,40.72478115,2668.7,2668.6,0.08609393]
[1643817189814,5.7288539,2668.7,2668.6,0.08609393]
[1643817190008,4.9212,2668.7,2668.6,0.08609393]
[1643817190207,4.734,2668.7,2668.6,0.08609393]
[1643817190708,4.65,2668.6,2667.7,0.01137263]
[1643817190919,76.20381119,2668.5,2667.7,0.00137263]
[1643817191110,0.22375583,2667.9,2667.7,0.00137263]
[1643817191309,0.22375583,2667.9,2667.1,0.2172]
[1643817191310,35.35788395,2667.8,2667.1,0.18857263]
[1643817191508,35.50988395,2667.8,2667.1,0.00137263]
[1643817191707,0.1488,2667.7,2667.1,0.00137263]
[1643817191910,0.434,2667.6,2667.1,0.00137263]
[1643817192108,0.434,2667.6,2667.0,0.70135264]
[1643817192310,0.4958,2668.0,2667.0,0.70135264]
[1643817192311,0.3084,2668.0,2667.0,0.70135264]
[1643817192507,0.3084,2668.0,2667.1,0.1874]
[1643817192807,0.3084,2668.0,2667.9,0.72216169]
[1643817193008,0.20614154,2667.7,2667.4,0.01]
[1643817193277,0.20614154,2667.7,2667.4,0.00270548]
[1643817193862,0.434,2667.6,2667.4,0.00133285]
[1643817194160,0.434,2667.6,2666.9,0.00137263]
[1643817194161,0.19255024,2667.0,2666.9,0.00137263]
[1643817194364,0.434,2667.2,2667.0,0.00533222]
[1643817195064,1.0,2667.7,2667.0,0.00533222]
[1643817195065,0.434,2667.6,2667.0,0.00533222]
[1643817195265,0.3,2667.6,2667.0,0.18401986]
[1643817195663,0.9214,2667.9,2667.4,0.78142898]
[1643817195969,0.434,2667.9,2667.4,0.78142898]
[1643817196167,0.3084,2668.0,2667.4,0.78142898]
[1643817196365,0.3084,2668.0,2667.5,0.20177713]
[1643817197020,2.1874,2669.1,2667.6,0.00440014]
[1643817197021,0.0048265,2668.2,2667.6,0.00440014]
[1643817197219,0.0048265,2668.2,2668.1,5.27652949]
[1643817197419,0.0048265,2668.2,2668.1,0.86372949]
[1643817197618,0.0048265,2668.2,2668.1,3.72657455]
[1643817197820,0.1872,2669.2,2668.1,3.53937455]
[1643817198119,0.44655928,2669.3,2668.2,0.1872]
[1643817198120,0.004827,2668.3,2668.2,0.1872]
[1643817198525,2.7e-05,2668.3,2668.2,7.61118]
[1643817198719,2.7e-05,2668.3,2668.2,0.937]
[1643817198922,0.01255928,2669.3,2668.2,0.937]
[1643817199120,0.01255928,2669.3,2667.9,0.1872]
[1643817199121,0.15815928,2669.3,2667.9,0.1872]
[1643817199322,0.434,2669.2,2667.9,0.1872]
[1643817199522,0.1872,2669.1,2668.2,0.93702]
[1643817199722,0.434,2669.1,2668.2,0.93702]
[1643817199924,0.434,2669.1,2668.2,0.02]
[1643817200125,0.434,2669.1,2668.1,0.1872]
[1643817200326,0.434,2669.1,2668.1,2.061]
[1643817200524,0.434,2669.1,2668.2,0.02]
[1643817200760,0.434,2669.1,2668.7,0.85760435]
[1643817200960,0.434,2669.1,2668.5,0.18974574]
[1643817201157,0.434,2669.1,2668.1,0.2084183]
[1643817201457,0.434,2669.1,2668.1,0.2072]
[1643817201655,0.434,2669.1,2668.1,0.2084183]
[1643817201856,0.434,2669.1,2668.6,0.94990515]
[1643817202058,0.1872,2669.4,2668.7,0.93683]
[1643817202258,0.1872,2669.5,2668.7,0.95683]
[1643817202456,0.1872,2669.7,2668.7,0.95683]
[1643817202663,0.1872,2669.7,2668.7,0.02]
[1643817202858,0.0047221,2669.2,2668.3,0.02]
[1643817203662,2.63494333,2669.3,2668.3,0.79587432]
[1643817203663,0.434,2669.1,2668.3,0.79587432]
[1643817203857,0.434,2669.1,2668.4,0.21519435]
[1643817203858,0.15778878,2668.8,2668.4,0.21519435]
[1643817204056,0.15778878,2668.8,2668.4,0.02]
[1643817204257,0.15778878,2668.8,2668.0,0.02]
[1643817204507,0.15778878,2668.8,2667.9,0.2072]
[1643817204905,0.15778878,2668.8,2668.1,0.93709]
[1643817205103,0.434,2669.1,2668.1,0.93709]
[1643817205305,0.00351015,2668.5,2668.1,0.93709]
[1643817206104,0.1872,2669.2,2668.3,0.93694]
[1643817206309,0.01201917,2669.5,2668.3,0.93694]
[1643817206310,0.6212,2669.4,2668.9,0.76522939]
[1643817206512,0.1872,2669.4,2668.6,0.02]
[1643817206806,0.1872,2669.4,2668.4,0.02]
[1643817207005,0.1872,2669.4,2668.3,0.02]
[1643817207406,0.21081058,2669.0,2668.3,0.02]
[1643817207608,0.21573158,2669.0,2668.3,0.68842191]
[1643817208005,0.004921,2669.0,2668.3,0.68842191]
[1643817208654,0.6212,2669.4,2668.3,0.68842191]
[1643817208858,0.00492111,2668.8,2668.3,0.68842191]
[1643817209254,0.00492111,2668.8,2668.5,0.21367465]
[1643817209854,0.434,2669.4,2668.5,0.21367465]
[1643817210254,0.434,2669.4,2668.6,0.00137038]
[1643817210457,0.434,2669.4,2669.0,0.2220455]
[1643817210658,0.1872,2669.7,2669.0,0.2220455]
[1643817210856,0.27639994,2669.8,2669.0,0.2220455]
[1643817211257,0.00492348,2669.3,2669.0,0.2220455]
[1643817211461,0.00492348,2669.3,2669.1,0.00137038]
[1643817212132,0.44403055,2669.8,2669.0,0.2220455]
[1643817212522,0.00492348,2669.3,2669.1,0.00137038]
[1643817213125,0.00492348,2669.3,2669.0,0.2220455]
[1643817213324,0.44403055,2669.8,2669.0,0.2220455]
[1643817213325,1.02543366,2669.7,2669.0,0.2220455]
[1643817213525,1.02543366,2669.7,2668.9,0.02137038]
[1643817213724,0.00492348,2669.3,2668.9,0.00137038]
[1643817214028,0.00492348,2669.3,2668.5,0.02137038]
[1643817214227,11.0234363,2669.2,2668.5,0.00137038]
[1643817214427,0.6212,2669.1,2668.2,0.00137038]
[1643817214627,0.7884,2669.1,2668.3,0.20777024]
[1643817214827,0.1552,2669.0,2668.3,0.20777024]
[1643817215025,0.6212,2668.9,2668.4,0.00137038]
[1643817215529,0.148,2668.8,2668.1,0.00472394]
[1643817215758,0.434,2668.7,2667.7,0.00137038]
[1643817215958,0.6212,2668.7,2667.7,0.00137038]
[1643817216154,0.1991019,2668.5,2668.1,0.00441688]
[1643817216354,0.434,2668.4,2668.1,0.00441688]
[1643817216756,6.2594804,2668.3,2667.8,0.00137038]
[1643817216957,0.4552,2668.3,2667.8,0.00137038]
[1643817217155,2.78677777,2668.2,2667.8,0.00137038]
[1643817217354,0.5836,2668.2,2667.0,0.00137038]
[1643817217556,3.08218619,2668.2,2667.1,0.1874]
[1643817217756,0.5756,2668.2,2667.6,0.20487884]
[1643817217958,0.434,2668.2,2667.6,0.20487884]
[1643817218156,0.434,2668.2,2667.4,0.02]
[1643817218356,0.434,2668.2,2667.2,0.02137038]
[1643817218556,2.72239285,2668.2,2667.4,0.00137038]
[1643817218959,0.434,2668.2,2667.4,0.00137038]
[1643817219161,0.434,2668.2,2667.9,0.16005248]
[1643817219359,0.21379961,2668.4,2667.2,0.50212655]
[1643817219360,0.21379961,2668.4,2667.4,1.87441]
[1643817219614,0.21379961,2668.4,2667.5,0.50086811]
[1643817219811,0.00491995,2668.3,2667.7,0.00470179]
[1643817220012,0.00491995,2668.3,2667.7,1.79226596]
[1643817220210,0.00491995,2668.3,2667.8,0.02]
[1643817220410,0.00491995,2668.3,2667.7,0.0772843]
[1643817220615,0.21379961,2668.4,2667.7,0.0772843]
[1643817221017,0.00351607,2668.3,2667.7,0.0772843]
[1643817221819,0.21379961,2668.4,2667.7,0.00137038]
[1643817222215,0.734,2668.6,2667.7,0.00137038]
[1643817222415,0.5748,2668.6,2667.6,0.1872]
[1643817222615,0.434,2668.6,2667.6,0.1872]
[1643817222816,0.1874,2668.8,2667.8,1.8741]
[1643817223115,0.1874,2668.8,2667.9,0.3134746]
[1643817223116,0.20476084,2668.8,2667.9,0.3134746]
[1643817223355,0.20476084,2668.8,2667.9,0.02]
[1643817223556,0.71411218,2668.9,2668.0,0.00137038]
[1643817223756,1.2578237,2668.8,2668.0,0.00137038]
[1643817224157,0.434,2668.9,2668.0,0.00137038]
[1643817224358,0.434,2668.9,2668.0,0.31525157]
[1643817224359,1.26030415,2668.8,2668.0,0.31525157]
[1643817224557,0.00492634,2668.5,2668.1,0.00137038]
[1643817224755,0.00492634,2668.5,2668.3,0.20365081]
[1643817224957,0.00492634,2668.5,2668.1,0.00137038]
[1643817225158,0.00492634,2668.5,2668.3,0.20943479]
[1643817225358,0.00492634,2668.5,2668.0,0.02]
[1643817225558,1.32544383,2668.9,2667.9,0.00137038]
[1643817225559,4.0487231,2668.9,2667.9,0.00137038]
[1643817225858,4.0487231,2668.9,2667.9,0.2991085]
[1643817225859,0.43892634,2668.5,2667.9,0.2991085]
[1643817226062,0.00492634,2668.5,2667.9,0.00137038]
[1643817226261,1.25632304,2668.4,2667.9,0.00137038]
[1643817226459,1.25632304,2668.4,2667.8,0.2072]
[1643817226460,0.1743903,2668.0,2667.8,0.1872]
[1643817226672,3.98558694,2668.3,2667.8,0.1872]
[1643817226865,0.9266,2668.0,2667.8,0.1872]
[1643817227323,0.9266,2668.0,2667.6,0.00371215]
[1643817227827,0.434,2667.9,2667.6,0.00371215]
[1643817228029,0.434,2667.9,2667.5,0.00137038]
[1643817228228,0.434,2667.9,2667.4,0.29471979]
[1643817228426,0.434,2667.9,2667.4,0.31471979]
[1643817228627,2.750787,2667.9,2667.4,0.22129983]
[1643817228931,1.40668079,2667.8,2667.4,0.02137038]
[1643817229129,1.40668079,2667.8,2667.4,0.00137038]
[1643817229130,1.69588079,2667.7,2667.4,0.00137038]
[1643817229327,0.434,2667.7,2666.9,0.29398561]
[1643817229531,0.434,2667.7,2667.5,0.00418042]
[1643817229729,1.26311924,2667.6,2667.5,0.00418042]
[1643817230030,5.85888664,2667.6,2667.5,8.042e-05]
[1643817230230,9.58364663,2667.6,2667.5,8.042e-05]
[1643817230428,8.58604663,2667.6,2666.8,0.02137038]
[1643817230631,1.45068664,2667.5,2667.4,0.00418049]
[1643817230874,6.02349629,2667.5,2667.4,0.00418049]
[1643817231075,6.02349629,2667.5,2665.9,0.1874]
[1643817231076,5.5541,2667.4,2665.9,0.1874]
[1643817231272,5.5541,2667.4,2665.4,9.58554667]
[1643817231273,0.99999999,2667.2,2665.4,9.58554667]
[1643817231484,5.55,2667.0,2665.5,0.1874]
[1643817231671,47.66728035,2666.9,2665.6,0.29832147]
[1643817231871,1.89478664,2666.8,2665.6,0.29832147]
[1643817232075,1.27328664,2666.7,2665.6,0.29832147]
[1643817232276,0.6315,2666.6,2665.7,0.29832147]
[1643817232473,0.6315,2666.6,2665.8,0.29832147]
[1643817232474,0.434,2666.6,2665.8,0.29832147]
[1643817232675,0.434,2666.6,2665.9,0.29832147]
[1643817232874,0.734,2666.6,2666.0,0.6]
[1643817233072,0.734,2666.6,2666.0,0.55375902]
[1643817233973,11.1754363,2666.5,2666.0,0.55]
[1643817234174,0.444,2666.4,2666.2,0.00375881]
[1643817234373,0.5864,2666.4,2666.2,0.00375881]
[1643817234616,0.744,2666.4,2666.2,0.00375881]
[1643817234812,0.17560095,2666.3,2666.2,0.00375881]
[1643817235216,0.60960095,2666.3,2666.0,0.55]
[1643817235413,0.90960095,2666.3,2666.0,0.55]
[1643817235622,2.42173067,2666.2,2666.0,0.55]
[1643817235814,0.444,2666.1,2666.0,0.55]
[1643817236014,0.434,2666.1,2666.0,0.55]
[1643817236616,2.24712515,2666.1,2666.0,0.55]
[1643817236814,2.25712515,2666.1,2666.0,0.55]
[1643817237019,2.55712515,2666.1,2666.0,0.55]
[1643817237219,5.23223,2666.1,2666.0,0.55]
[1643817237415,4.23223,2666.1,2666.0,0.55]
[1643817237614,1.68223,2666.1,2666.0,0.55]
[1643817238014,0.444,2666.1,2666.0,0.55]
[1643817238659,0.744,2666.1,2666.0,0.55]
[1643817239058,3.594,2666.1,2666.0,0.55]
[1643817239258,0.444,2666.1,2666.0,0.55]
[1643817239863,0.01,2666.1,2666.0,0.55]
[1643817240058,0.93797,2666.8,2666.0,0.55]
[1643817240059,0.01,2666.7,2666.0,0.55]
[1643817240758,0.58685446,2667.0,2666.2,0.70093492]
[1643817240959,0.93793,2666.8,2666.2,0.70093492]
[1643817241369,0.01,2666.9,2666.5,0.00371705]
[1643817241569,0.00465522,2667.0,2666.5,0.00371705]
[1643817241762,0.18018457,2666.6,2666.5,0.00371705]
[1643817242015,0.00465522,2667.0,2666.5,0.00371705]
[1643817242421,0.74829367,2667.1,2666.1,0.01]
[1643817242616,0.434,2666.9,2666.4,0.00371712]
[1643817242916,0.734,2666.9,2666.4,0.00371712]
[1643817243114,0.434,2666.9,2666.4,0.00371712]
[1643817243314,0.734,2666.9,2666.4,0.00371712]
[1643817243515,0.734,2666.9,2666.1,0.1875]
[1643817243516,0.21074718,2666.6,2666.1,0.1875]
[1643817243716,0.734,2666.9,2666.1,0.1875]
[1643817243717,1.23792,2666.9,2666.1,0.1875]
[1643817243915,0.434,2666.6,2666.5,0.00380021]
[1643817244115,0.01,2666.8,2666.5,0.00380021]
[1643817244314,0.734,2666.9,2666.5,0.00380021]
[1643817244921,0.434,2666.9,2666.5,0.21994172]
[1643817245117,0.00468031,2667.0,2666.6,0.00380014]
[1643817245963,0.18524281,2667.0,2666.4,0.01]
[1643817246158,0.18524281,2667.0,2666.7,0.00379999]
[1643817246360,0.18992326,2667.0,2666.4,0.01135895]
[1643817246862,0.434,2666.9,2666.2,0.1874]
[1643817247059,0.434,2666.9,2666.2,0.17663815]
[1643817247259,0.434,2666.9,2666.1,0.18885895]
[1643817247462,0.434,2666.9,2666.2,0.00135895]
[1643817248264,1.3719,2666.9,2666.2,0.80850678]
[1643817248463,0.01,2666.8,2666.5,0.17052615]
[1643817248759,0.39181527,2667.6,2666.5,0.17052615]
[1643817248760,3.6975,2667.5,2666.5,0.17052615]
[1643817248962,0.01,2667.4,2666.6,0.00135895]
[1643817249364,0.01,2667.4,2666.7,1.65569376]
[1643817249632,0.17203374,2667.9,2667.3,0.87632964]
[1643817249824,0.16203374,2667.9,2667.3,0.87632964]
[1643817250026,0.16203374,2667.9,2666.8,0.18875895]
[1643817250027,0.0123731,2667.4,2666.8,0.18875895]
[1643817250223,0.1974,2668.3,2666.5,2.01201522]
[1643817250224,0.1874,2668.0,2666.6,0.20299874]
[1643817250422,0.93745,2668.3,2666.7,3.23184889]
[1643817250722,0.93745,2668.3,2667.3,0.93738]
[1643817250929,1.24833116,2668.2,2667.0,1.87475]
[1643817251124,0.00493122,2667.4,2667.3,1.12788691]
[1643817251523,0.00493122,2667.4,2666.8,2.06350895]
[1643817251722,0.00493122,2667.4,2666.8,1.87621895]
[1643817251926,0.434,2667.7,2666.8,0.00135895]
[1643817252122,0.434,2667.6,2666.8,0.00135895]
[1643817252321,0.434,2667.6,2666.6,0.00462693]
[1643817252322,0.00493132,2667.2,2666.6,0.00462693]
[1643817252524,0.00493132,2667.2,2666.7,0.97313772]
[1643817252926,0.00493132,2667.2,2666.7,3.03547772]
[1643817253123,0.434,2668.0,2666.7,3.03547772]
[1643817253554,0.434,2668.0,2666.7,2.83229651]
[1643817253555,0.0049314,2667.1,2666.7,2.83229651]
[1643817253755,0.0049314,2667.1,2666.8,1.16261213]
[1643817253958,0.0049314,2667.1,2666.9,0.1874]
[1643817254356,0.434,2667.6,2666.9,0.1874]
[1643817254557,0.434,2667.6,2666.7,0.76995651]
[1643817254756,0.00493137,2667.1,2666.7,0.76995651]
[1643817255158,0.43893137,2667.1,2666.7,0.94355907]
[1643817255556,0.43893137,2667.1,2666.7,0.76995651]
[1643817255557,0.73893137,2667.1,2666.7,0.76995651]
[1643817255759,0.734,2667.1,2666.7,0.76995651]
[1643817255957,0.00354359,2667.0,2666.7,0.76995651]
[1643817256157,0.00354359,2667.0,2666.2,0.00135895]
[1643817256559,0.00354359,2667.0,2666.8,0.17598214]
[1643817256759,1.67182,2667.1,2666.2,0.00135895]
[1643817257005,0.00354329,2667.0,2666.2,0.00135895]
[1643817257214,0.00354329,2667.0,2666.4,0.78370187]
[1643817258010,1.67182,2667.1,2666.7,0.18858288]
[1643817258309,0.00354343,2667.0,2666.7,0.18858288]
[1643817258708,0.00354343,2667.0,2666.5,0.00135895]
[1643817258908,0.00354343,2667.0,2666.3,0.00135895]
[1643817258909,0.434,2666.9,2666.3,0.00135895]
[1643817259109,0.93797,2666.8,2666.3,0.00135895]
[1643817259310,1.23797,2666.8,2666.3,0.00135895]
[1643817259509,0.434,2666.7,2666.6,0.00462483]
[1643817259710,0.434,2666.7,2666.6,0.21567883]
[1643817259910,0.00478042,2667.0,2666.6,3.61567883]
[1643817260112,0.00478042,2667.0,2666.6,3.62862702]
[1643817260309,11.7491,2667.7,2666.6,3.62400219]
[1643817260310,3.934,2667.7,2666.6,3.62400219]
[1643817260512,3.934,2667.7,2666.6,3.611054]
[1643817260774,0.00478049,2667.0,2666.8,0.84036189]
[1643817260971,0.00478049,2667.0,2666.7,0.00135895]
[1643817261374,0.43878049,2667.0,2666.7,0.00135895]
[1643817261570,0.434,2667.0,2666.3,0.00135895]
[1643817261871,0.4387805,2667.0,2666.6,0.00462483]
[1643817262070,0.4387805,2667.0,2666.6,0.86089217]
[1643817262269,0.4387805,2667.0,2666.7,0.16313266]
[1643817262870,0.434,2667.0,2666.7,0.16313266]
[1643817263376,1.87586,2666.9,2666.6,0.00462483]
[1643817263570,0.434,2666.8,2666.6,0.00462483]
[1643817263771,0.434,2666.8,2666.6,0.31107393]
[1643817263971,0.434,2666.8,2666.6,0.3064491]
[1643817264170,0.434,2666.8,2666.6,1.27023944]
[1643817264371,0.434,2666.8,2666.6,1.07353939]
[1643817264812,5.55,2666.7,2665.9,0.01434054]
[1643817265017,0.01224903,2666.1,2665.9,0.01434054]
[1643817265321,11.3637363,2666.6,2665.0,2.1875]
[1643817265513,11.3637363,2666.6,2665.9,0.20631416]
[1643817265514,2.31014,2666.5,2665.9,0.20631416]
[1643817265720,2.31014,2666.5,2664.9,0.01206559]
[1643817265721,0.434,2666.5,2665.5,0.01246219]
[1643817265914,0.434,2666.5,2665.2,0.1875]
[1643817265915,2.81484,2666.3,2665.4,0.79191532]
[1643817266115,0.6215,2666.2,2665.4,0.79191532]
[1643817266314,0.434,2666.2,2665.4,0.79191532]
[1643817266517,0.434,2666.2,2665.2,0.1875]
[1643817266716,1.43832804,2666.1,2665.2,0.1875]
[1643817266916,1.87656,2665.8,2665.2,0.1875]
[1643817267513,0.11687754,2665.0,2664.6,6.5373]
[1643817267714,0.434,2665.4,2664.6,0.1876]
[1643817268112,0.434,2665.4,2664.8,0.21341884]
[1643817268113,2.46867927,2665.4,2664.8,0.21341884]
[1643817268567,2.31082,2665.4,2665.0,0.87989393]
[1643817268771,37.99751067,2666.0,2665.1,4.5]
[1643817268772,0.1875,2666.0,2665.1,4.5]
[1643817268968,0.1448,2666.2,2665.2,0.29956895]
[1643817268969,0.1875,2666.2,2665.2,0.29956895]
[1643817269169,0.434,2666.4,2665.2,0.29956895]
[1643817269170,0.1875,2666.4,2665.2,1.48706895]
[1643817269370,0.434,2666.7,2665.3,0.29956895]
[1643817269371,0.93791,2666.7,2665.3,0.29956895]
[1643817269570,3.13147442,2666.8,2666.5,0.2026036]
[1643817269571,1.24674367,2666.6,2666.5,0.2026036]
[1643817269770,0.00493631,2666.8,2666.5,0.85650152]
[1643817269972,0.00493631,2666.8,2666.6,0.93774]
[1643817270168,0.20291524,2667.0,2666.6,0.93774]
[1643817270371,0.00493825,2666.8,2666.6,0.93774]
[1643817270768,1.24806925,2666.7,2666.4,0.00461613]
[1643817271169,0.434,2666.6,2666.4,0.00461613]
[1643817271371,1.99142031,2666.5,2666.0,0.1874]
[1643817271569,1.68206925,2666.4,2666.0,0.1874]
[1643817271768,1.41942082,2666.3,2666.0,0.1874]
[1643817272009,1.68206925,2666.2,2666.0,0.1874]
[1643817272209,1.68722129,2666.1,2666.0,0.1874]
[1643817272411,0.434,2666.3,2666.0,0.1874]
[1643817272609,1.25287567,2666.2,2666.0,0.1874]
[1643817272812,4.234,2666.1,2666.0,0.19201691]
[1643817273013,5.48687567,2666.1,2666.0,0.19201691]
[1643817273213,8.24284079,2666.1,2665.6,0.0184704]
[1643817273413,2.64569242,2666.0,2665.6,0.0184704]
[1643817273615,1.68687567,2665.9,2665.5,0.93833]
[1643817273811,0.1875,2665.8,2665.5,0.93833]
[1643817274013,0.434,2665.7,2665.5,0.93833]
[1643817274415,1.25287567,2665.6,2665.3,1.87659]
[1643817274613,0.434,2665.5,2665.3,1.87659]
[1643817274814,0.63075228,2665.5,2665.3,1.87659]
[1643817275614,0.63075228,2665.5,2665.3,2.62435241]
[1643817275884,0.434,2665.5,2665.3,2.62435241]
[1643817276081,0.434,2665.5,2665.3,3.56262241]
[1643817276288,0.93827,2665.9,2665.3,3.56262241]
[1643817276482,7.9752,2666.4,2665.3,3.56262241]
[1643817276483,0.6215,2666.3,2665.3,3.56262241]
[1643817276682,1.25169795,2666.2,2665.3,3.56262241]
[1643817276882,1.25169795,2666.2,2665.3,1.87659]
[1643817276883,0.20931762,2665.6,2665.3,1.87659]
[1643817277080,0.434,2665.6,2665.3,1.87659]
[1643817277286,0.1875,2666.4,2665.5,3.75236]
[1643817277484,1.25203969,2666.3,2665.5,3.75236]
[1643817277681,3.65893231,2666.5,2665.6,0.00458741]
[1643817277885,1.25151423,2666.4,2666.0,0.85180548]
[1643817278085,0.00493231,2666.5,2666.2,0.22229104]
[1643817278483,2.25761896,2667.3,2666.2,2.09785104]
[1643817278687,2.85009574,2667.6,2666.4,2.81279]
[1643817278688,0.69833896,2667.4,2666.4,2.81279]
[1643817278892,2.4258613,2667.8,2667.1,0.94978739]
[1643817278893,1.25201591,2667.3,2667.1,0.94978739]
[1643817279086,0.69833896,2667.5,2666.5,0.1874]
[1643817279511,1.95035487,2667.5,2666.6,2.81258]
[1643817279711,1.25201591,2667.4,2666.7,2.0624]
[1643817280010,0.69833896,2667.7,2666.9,0.91212185]
[1643817280011,1.25201591,2667.3,2666.9,0.91212185]
[1643817280210,1.25201591,2667.2,2666.7,2.0624]
[1643817280412,1.43846966,2667.1,2666.7,2.0624]
[1643817280610,1.43846966,2667.1,2666.8,0.9375]
[1643817280611,1.25201591,2667.0,2666.8,0.9375]
[1643817281012,1.68601591,2667.0,2666.8,0.9375]
[1643817281211,2.11481786,2666.9,2666.3,2.06329]
[1643817281422,1.68601591,2666.8,2666.3,3.00117]
[1643817281614,1.25201591,2666.7,2666.3,3.00117]
[1643817281910,0.434,2667.0,2666.6,0.93796]
[1643817282110,1.25251193,2666.9,2666.6,0.93796]
[1643817282310,1.25251193,2666.9,2666.7,0.86725103]
[1643817282512,1.25251193,2666.9,2666.7,2.74274103]
[1643817282811,1.25251193,2666.8,2666.7,1.87549]
[1643817283468,1.25251193,2667.0,2666.7,1.87549]
[1643817283668,0.00489482,2666.9,2666.7,1.87549]
[1643817283879,1.25251193,2666.8,2666.7,2.59990029]
[1643817284079,0.00489482,2666.9,2666.7,0.72441029]
[1643817284572,0.88573896,2667.6,2666.7,0.72441029]
[1643817284871,0.00489479,2666.9,2666.8,2.81262]
[1643817285071,0.00489479,2666.9,2666.8,1.87508]
[1643817285673,1.25803387,2666.9,2666.8,1.87508]
[1643817285870,1.25313908,2666.9,2666.8,1.87508]
[1643817286369,0.00464119,2667.0,2666.8,1.87508]
[1643817286571,1.25313908,2666.9,2666.8,1.87508]
[1643817287015,1.25313908,2666.9,2666.8,2.08592819]
[1643817287211,1.25313908,2667.3,2666.8,2.08592819]
[1643817287410,0.00464119,2667.0,2666.8,2.08592819]
[1643817287612,1.25313908,2666.9,2666.8,1.11736875]
[1643817287914,1.25313908,2666.9,2666.8,0.17972875]
[1643817288710,1.25313908,2666.9,2666.7,2.8126]
[1643817288915,36.87536199,2666.8,2666.4,0.1874]
[1643817289113,36.87536199,2666.8,2665.9,0.00358915]
[1643817289114,5.56258489,2666.5,2665.9,0.00358915]
[1643817289316,1.44063908,2666.4,2665.9,0.00358915]
[1643817289512,1.68713908,2666.3,2665.7,0.00135818]
[1643817289712,1.25313908,2666.2,2665.9,0.00377941]
[1643817289912,1.25313908,2666.1,2665.9,0.00377941]
[1643817290113,1.25313908,2666.0,2665.9,0.00377941]
[1643817290765,1.25313908,2666.0,2665.7,0.16825809]
[1643817290961,2.07523425,2666.3,2665.8,0.94182949]
[1643817291263,1.23061747,2666.2,2665.8,0.94182949]
[1643817291659,2.50251794,2666.5,2665.8,0.94182949]
[1643817291660,0.19219794,2666.5,2665.8,0.94182949]
[1643817291866,1.23039995,2666.4,2665.8,0.93805]
[1643817292059,11.0234363,2667.0,2665.8,0.93805]
[1643817292260,0.00469801,2666.5,2665.9,0.32518958]
[1643817292464,1.22932042,2666.4,2666.0,2.06299]
[1643817292661,1.22932042,2666.4,2666.0,1.87549]
[1643817293464,0.00357047,2666.5,2666.0,1.87549]
[1643817293663,0.00357047,2666.5,2666.1,0.1875]
[1643817293868,0.00357047,2666.5,2666.1,2.06304]
[1643817294265,0.69833896,2667.3,2667.0,0.1852763]
[1643817294526,1.22989796,2667.2,2666.7,0.93753]
[1643817294724,1.22989796,2667.1,2666.7,0.93753]
[1643817294922,0.69833896,2667.6,2667.0,0.93755]
[1643817295122,0.69833896,2667.6,2666.7,2.0625]
[1643817295422,0.69833896,2667.6,2666.5,0.1874]
[1643817295423,0.69833896,2667.3,2666.5,0.1874]
[1643817295623,0.69833896,2667.3,2666.6,0.93772]
[1643817295822,1.93152763,2667.4,2666.6,0.93772]
[1643817296021,1.22961802,2667.3,2666.6,0.93772]
[1643817296221,1.22961802,2667.3,2666.6,2.60965572]
[1643817296423,1.22961802,2667.3,2666.7,1.87533]
[1643817297024,1.22961802,2667.3,2666.8,0.22249322]
[1643817297025,0.00494612,2667.1,2666.8,0.22249322]
[1643817297222,0.00494612,2667.1,2666.7,1.87533]
[1643817297223,1.22961802,2667.0,2666.7,1.87533]
[1643817297422,1.22961802,2666.9,2666.7,1.87533]
[1643817297622,1.22961802,2666.8,2666.7,1.87533]
[1643817297822,2.22795698,2667.3,2666.7,1.87533]
[1643817298022,1.22961802,2667.2,2666.7,1.87533]
[1643817298260,1.22961802,2667.2,2666.8,0.2032608]
[1643817298462,1.22961802,2667.2,2666.7,1.87533]
[1643817298664,2.86572698,2667.2,2666.7,1.87533]
[1643817298861,2.86572698,2667.2,2666.6,0.93766]
[1643817298862,1.22961802,2667.1,2666.6,0.93766]
[1643817299062,3.22795698,2667.1,2666.6,1.87534]
[1643817299262,1.22961802,2667.0,2666.6,1.87534]
[1643817299764,1.52961802,2666.9,2666.6,1.87534]
[1643817299961,1.22961802,2666.8,2666.6,0.93766]
[1643817300363,1.22961802,2666.7,2666.6,0.93766]